Cogmind - Beta 13 *** ADVENTURER MODE // 2024.03.15 @ 14:43:46 Player: Orshelack Result: Destroyed by Enhanced Grunt with Neutron Cannon Performance ------------- Evolutions (3) 1500 Regions Visited (7) 1400 Robots Destroyed (46) 230 Value Destroyed (1510) 1510 Prototype IDs (14) 280 Alien Tech Used (0) 0 Bonus (300) 300 TOTAL SCORE: 5220 Bonus ------- Met Data Miner 300 Cogmind --------- Core Integrity 0/700 Matter 90/300 Energy 4/100 System Corruption 0% Temperature Cool (0) Movement Core (100) Ox1 Location -7/Data Miner Parts ------- > --- POWER (1) -------- (None) > --- PROPULSION (3) --- (None) > --- UTILITY (7) ------ Experimental Sensor Array Targeting Computer System Shield Component Analysis Suite > --- WEAPON (2) ------- Katana > --- INVENTORY (5) ---- Neutron Cannon Peak State ------------ > --- POWER ------------ Improved Ion Engine > --- PROPULSION ------- Improved Aluminum Leg Improved Aluminum Leg Improved Aluminum Leg > --- UTILITY ---------- Structural Scanner Visual Processing Unit Targeting Computer Bomb Drone Bay > --- WEAPON ----------- Light Cannon Slug Cannon > --- INVENTORY -------- Experimental Sensor Array Mini Grenade Launcher Katana [Rating: 32] Favorites ----------- Power Improved Ion Engine Engine Improved Ion Engine Power Core Light Nuclear Core Propulsion Improved Aluminum Leg Leg Improved Aluminum Leg Utility Structural Scanner Device Structural Scanner Processor Targeting Computer Hackware System Shield Protection Hardened Heavy Armor Plating Weapon Light Cannon Energy Gun EM Pulse Gun Ballistic Gun Heavy Assault Rifle Ballistic Cannon Light Cannon Launcher Heavy Missile Launcher Slashing Weapon Katana Build | -11 -10 -9 -9 -8 -7 -7 -7 ------- Run | Yrd Mat Mat Min Mat Fac Low Dat Slots Evolved 6 | . . 2 . 2 2 . . Power . | . . . . . . . . Propulsion 1 | . . 1 . . . . . Utility 5 | . . 1 . 2 2 . . Weapon . | . . . . . . . . Parts Attached 43 | 7 4 12 8 5 2 . 5 Power 5 | 1 1 2 1 . . . . Engine 4 | 1 1 1 1 . . . . Core 1 | . . 1 . . . . . Reactor . | . . . . . . . . Propulsion 14 | 2 2 6 2 2 . . . Treads . | . . . . . . . . Leg 14 | 2 2 6 2 2 . . . Wheel . | . . . . . . . . Hover . | . . . . . . . . Flight . | . . . . . . . . Utility 13 | 1 1 1 2 3 2 . 3 Device 8 | 1 1 . . 3 1 . 2 Storage . | . . . . . . . . Processor 2 | . . 1 1 . . . . Hackware 1 | . . . . . . . 1 Protection 2 | . . . 1 . 1 . . Artifact . | . . . . . . . . Weapon 11 | 3 . 3 3 . . . 2 Energy Gun 2 | 2 . . . . . . . Energy Cannon . | . . . . . . . . Ballistic Gun 3 | 1 . 2 . . . . . Ballistic Cannon 3 | . . 1 2 . . . . Launcher 2 | . . . 1 . . . 1 Special Weapon . | . . . . . . . . Impact Weapon . | . . . . . . . . Slashing Weapon 1 | . . . . . . . 1 Piercing Weapon . | . . . . . . . . Special Melee Weapon . | . . . . . . . . Unidentified Prototypes 1 | . . . . 1 . . . Parts Lost 14 | . 1 . 1 . 1 . 11 Power 2 | . 1 . . . . . 1 Propulsion 3 | . . . . . . . 3 Utility 6 | . . . 1 . . . 5 Weapon 3 | . . . . . 1 . 2 Highest Loss Streak 11 | . 1 . 1 . 1 . 11 To Critical Strikes . | . . . . . . . . Average Slot Usage (%) 91 | . 92 96 100 94 88 84 64 Engine 6 | . 11 . 6 9 7 7 4 Core 2 | . . 7 4 . . . . Leg 28 | . 28 33 33 27 23 23 16 Device 20 | . 23 22 15 21 23 23 19 Processor 12 | . . 11 13 18 15 15 10 Protection 3 | . . . 4 . 4 7 4 Energy Gun 4 | . 28 4 . . . . . Ballistic Gun 2 | . . 8 5 . . . . Ballistic Cannon 10 | . . 8 16 18 13 7 3 Naked Turns . | . . . . . . . . Heaviest Build 40 | 8 9 13 19 26 40 37 37 Greatest Support 39 | 20 20 39 39 39 33 33 33 Greatest Overweight (x) 1 | . . . . . 1 1 1 Average Overweight (x) . | . . . . . . 1 . Largest Inventory Capacity 5 | 5 5 5 5 5 5 5 5 Average Capacity 5 | 5 5 5 5 5 5 5 5 Most Carried 5 | 5 5 5 5 5 5 5 5 Average Carried 3 | 3 3 2 4 3 3 4 3 Final Capacity 5 | 5 5 5 5 5 5 5 5 Final Carried 5 | 5 5 3 5 3 4 5 1 Class Distribution -------------------- 60% | Scavenger-Mutant 37% | Mutant Dominant Class ---------------- Mutant | -10/Materials Mutant | -9/Materials Scavenger-Mutant | -9/Mines Scavenger-Mutant | -8/Materials Scavenger-Mutant | -7/Factory Scavenger-Mutant | -7/Lower Caves Scavenger-Mutant | -7/Data Miner Resources | -11 -10 -9 -9 -8 -7 -7 -7 ----------- Run | Yrd Mat Mat Min Mat Fac Low Dat Matter Collected 1146 | 274 30 304 150 243 92 41 12 Remotely . | . . . . . . . . Salvage Created 1487 | 243 325 381 158 240 82 . 58 Parts 92 | 20 13 30 15 11 3 . . Haulers Intercepted 1 | . . 1 . . . . . Recyclers Shooed . | . . . . . . . . Parts Field Recycled . | . . . . . . . . Retrieved Matter . | . . . . . . . . Parts Self-Destructed . | . . . . . . . . Prevented . | . . . . . . . . Kills | -11 -10 -9 -9 -8 -7 -7 -7 ------- Run | Yrd Mat Mat Min Mat Fac Low Dat Combat Hostiles Destroyed 33 | . 6 8 7 8 2 . 2 Guns 13 | . 6 5 2 . . . . Cannons 16 | . . 3 3 8 2 . . AOE 4 | . . . 2 . . . 2 Classes Destroyed 11 | 3 3 2 2 1 . . . Worker 2 | 2 . . . . . . . Builder 1 | . 1 . . . . . . Tunneler 4 | 4 . . . . . . . Hauler 1 | . . 1 . . . . . Recycler 3 | 1 . 1 . . 1 . . Watcher 2 | . 1 1 . . . . . Swarmer 2 | . . . 2 . . . . Grunt 23 | . 6 6 4 6 1 . . Duelist 1 | . . . 1 . . . . Sentry 4 | . . 2 . 1 1 . . Hunter 1 | . . . . 1 . . . Enhanced Grunt 2 | . . . . . . . 2 Best Kill Streak 5 | 4 3 5 3 3 3 . 2 Combat Bots Only 4 | . 2 4 3 3 1 . 2 Max Kills in Single Turn 2 | 1 1 2 2 1 1 . 2 Gunslinging . | . . . . . . . . Exploded 2 | . . . 2 . . . 2 Melee . | . . . . . . . . Uniques/NPCs Destroyed . | . . . . . . . . Combat | -11 -10 -9 -9 -8 -7 -7 -7 -------- Run | Yrd Mat Mat Min Mat Fac Low Dat Hostile Shots Fired 265 | . 19 33 19 44 94 . 56 Missed 92 | . 3 7 5 9 54 . 14 Damage Taken 3006 | . 164 345 182 433 231 . 1651 Core 938 | . 42 58 54 80 16 . 688 Absorbed by Shields . | . . . . . . . . Redirected to Shielding 1 | . . . 1 . . . . Ignored by Resistances 844 | . 52 96 53 121 83 . 439 Core Remaining (%) 85 | 100 83 . 72 85 . . . Volleys Fired 126 | 16 23 25 14 30 10 . 8 Largest 2 | 2 2 2 2 2 2 . 1 Hottest 83 | 80 80 80 58 83 83 . 48 Shots Fired 240 | 28 46 50 28 60 20 . 8 Gun 114 | 28 46 26 14 . . . . Cannon 118 | . . 24 13 60 20 . 1 Launcher 8 | . . . 1 . . . 7 Special . | . . . . . . . . Kinetic 160 | 4 . 48 27 60 20 . 1 Thermal . | . . . . . . . . Explosive 8 | . . . 1 . . . 7 Electromagnetic 72 | 24 46 2 . . . . . Robot Hit Streak 20 | 13 10 10 20 13 9 . 6 Robot Miss Streak 3 | 1 1 2 1 3 1 . 1 Penetration Max . | . . . . . . . . Secondary Targets . | . . . . . . . . Shots Hit Robots 181 | 18 33 37 24 42 16 . 11 Core Hits 80 | 8 12 15 11 16 5 . 13 Critical Kills 1 | . . . . . 1 . . Critical Parts Destroyed 3 | . . . . 2 1 . . Critical Strikes 9 | 1 . 1 . 4 2 . 1 Destroy 4 | . . . . 2 2 . . Blast 3 | . . 1 . 2 . . . Corrupt 1 | 1 . . . . . . . Sever 1 | . . . . . . . 1 Melee Attacks 6 | . . . . . . . 6 Impact . | . . . . . . . . Slashing 6 | . . . . . . . 6 Piercing . | . . . . . . . . Sneak Attacks . | . . . . . . . . Combat Hostiles . | . . . . . . . . Follow-up Attacks . | . . . . . . . . Damage Inflicted 4464 | 222 507 584 460 806 395 . 1490 Guns 1137 | 222 470 254 191 . . . . Cannons 1714 | . . 330 183 806 395 . . Explosions 1462 | . 37 . 86 . . . 1339 Melee 151 | . . . . . . . 151 Ramming . | . . . . . . . . Kinetic 2188 | 29 . 584 374 806 395 . . Thermal 37 | . 37 . . . . . . Explosive 1425 | . . . 86 . . . 1339 Electromagnetic 663 | 193 470 . . . . . . Impact . | . . . . . . . . Slashing 151 | . . . . . . . 151 Piercing . | . . . . . . . . Highest Corruption 1 | . . 1 1 . . . . Average Corruption 1 | . . 1 1 . . . . Corruption Purged . | . . . . . . . . Corruption Blocked . | . . . . . . . . Effects 7 | . . 1 6 . . . . Message Errors 3 | . . . 3 . . . . Matter Fused 2 | . . 1 1 . . . . Misfires 1 | . . . 1 . . . . Alerts 1 | . . . 1 . . . . Overload Shots . | . . . . . . . . Overflow Damage 54 | . . . . 1 . . 53 Projectiles 1 | . . . . 1 . . . Explosions 53 | . . . . . . . 53 Melee . | . . . . . . . . Knockbacks 15 | . . 2 . 10 3 . . Impact . | . . . . . . . . Kinetic 14 | . . 2 . 9 3 . . Secondary 1 | . . . . 1 . . . Self-Inflicted Damage 231 | . 32 . . . . . 199 Shots 7 | . 1 . . . . . 6 Rammed . | . . . . . . . . Targets Rammed . | . . . . . . . . Kicked . | . . . . . . . . Crushed . | . . . . . . . . Highest Temperature 209 | 72 192 17 66 78 209 . 4 Average Temperature 55 | 28 66 5 45 38 112 . 2 Received Heat Transfer 717 | . 96 153 90 270 108 . . Siege Activations . | . . . . . . . . Robots Corrupted . | . . . . . . . . Combat Hostiles . | . . . . . . . . Parts Fried 8 | 2 6 . . . . . . Impact Corruptions . | . . . . . . . . Robots Melted . | . . . . . . . . Combat Hostiles . | . . . . . . . . Parts Melted . | . . . . . . . . Heat Transferred 50 | . 50 . . . . . . Parts Sabotaged . | . . . . . . . . Parts Stolen . | . . . . . . . . Parts Stripped . | . . . . . . . . Power Chain Reactions 1 | . 1 . . . . . . Alert | -11 -10 -9 -9 -8 -7 -7 -7 ------- Run | Yrd Mat Mat Min Mat Fac Low Dat Peak Influence 313 | 35 231 313 276 174 76 . . Initial 82 | . 19 82 77 24 . . . Average 110 | 11 103 196 103 76 30 . . Maximum Alert Level 1 | . 1 1 1 . . . . Low Security (%) 80 | 100 83 46 85 100 100 . . Level 1 19 | . 16 53 14 . . . . Level 2 . | . . . . . . . . Level 3 . | . . . . . . . . Level 4 . | . . . . . . . . Level 5 . | . . . . . . . . High Security . | . . . . . . . . Max Security . | . . . . . . . . Squads Dispatched 6 | . 2 2 . 2 . . . Investigation 4 | . 2 1 . 1 . . . Extermination . | . . . . . . . . Reinforcement 2 | . . 1 . 1 . . . Assault . | . . . . . . . . Garrison . | . . . . . . . . Intercept . | . . . . . . . . Searches Triggered . | . . . . . . . . Construction Impeded . | . . . . . . . . Haulers Reinforced . | . . . . . . . . Active Scanning Responses . | . . . . . . . . Cargo Convoy Interrupts . | . . . . . . . . Stealth | -11 -10 -9 -9 -8 -7 -7 -7 --------- Run | Yrd Mat Mat Min Mat Fac Low Dat Distress Signals 7 | . . 2 . 5 . . . Communications Jammed . | . . . . . . . . Distress Signals . | . . . . . . . . Times Spotted 55 | . 8 12 9 13 5 . 8 Peak Tracking Total 4 | . 2 4 3 4 3 . 4 Tactical Retreats 3 | . . 1 1 1 . . . Traps | -11 -10 -9 -9 -8 -7 -7 -7 ------- Run | Yrd Mat Mat Min Mat Fac Low Dat Traps Triggered 3 | . 1 2 . . . . . Indirectly . | . . . . . . . . Trap Hack Attempts . | . . . . . . . . Triggered . | . . . . . . . . Disarmed 6 | . 6 . . . . . . Reprogrammed . | . . . . . . . . Reused . | . . . . . . . . Traps Extracted . | . . . . . . . . Installed . | . . . . . . . . Triggered . | . . . . . . . . Machines | -11 -10 -9 -9 -8 -7 -7 -7 ---------- Run | Yrd Mat Mat Min Mat Fac Low Dat Machines Disabled 4 | . 1 . . . . . 3 Max in Single Turn 2 | . 1 . . . . . 2 Machines Repaired . | . . . . . . . . Machines Dismantled . | . . . . . . . . Machines Sabotaged . | . . . . . . . . Overloaded Fab Kills . | . . . . . . . . Hacking | -11 -10 -9 -9 -8 -7 -7 -7 --------- Run | Yrd Mat Mat Min Mat Fac Low Dat Machines Accessed 11 | . 3 1 1 1 1 . 4 Terminals 4 | . 3 . . 1 . . . Fabricators . | . . . . . . . . Repair Stations . | . . . . . . . . Recycling Units 1 | . . 1 . . . . . Scanalyzers . | . . . . . . . . Garrison Access 1 | . . . . . 1 . . Total Hacks 52 | . 11 3 1 5 1 . 31 Successful 45 | . 9 . 1 3 1 . 31 Failed 7 | . 2 3 . 2 . . . Catastrophic . | . . . . . . . . Database Lockouts . | . . . . . . . . Manual . | . . . . . . . . Terminals 16 | . 11 . . 5 . . . Fabricators . | . . . . . . . . Repair Stations . | . . . . . . . . Recycling Units 3 | . . 3 . . . . . Scanalyzers . | . . . . . . . . Garrison Access 1 | . . . . . 1 . . Terminal Hacks 44 | . 9 . 1 3 . . 31 Record 11 | . . . . . . . 11 Part Schematic 11 | . . . . . . . 11 Robot Schematic 6 | . . . . . . . 6 Prototype ID Bank 4 | . 1 . . . . . 3 Open Door 1 | . . . 1 . . . . Emergency Access Points 1 | . 1 . . . . . . Alert Level 1 | . 1 . . . . . . Locate Traps 4 | . 3 . . 1 . . . Disarm Traps 1 | . 1 . . . . . . Transport Status 1 | . . . . 1 . . . Reinforcement Status 1 | . 1 . . . . . . Hauler Manifests 1 | . . . . 1 . . . Zone Layout 1 | . 1 . . . . . . Fabricator Hacks . | . . . . . . . . Repair Station Hacks . | . . . . . . . . Recycling Unit Hacks . | . . . . . . . . Scanalyzer . | . . . . . . . . Garrison Access Hacks 1 | . . . . . 1 . . Unlock Access 1 | . . . . . 1 . . Unauthorized Hacks . | . . . . . . . . Terminals . | . . . . . . . . Fabricators . | . . . . . . . . Repair Stations . | . . . . . . . . Recycling Units . | . . . . . . . . Scanalyzers . | . . . . . . . . Garrison Access . | . . . . . . . . Data Cores Recovered . | . . . . . . . . Used . | . . . . . . . . Hacking Detections 6 | . 3 1 . 1 1 . . Full Trace Events 4 | . 3 1 . . . . . Feedback Events 1 | . . 1 . . . . . Corruption 1 | . . 1 . . . . . Feedback Blocked . | . . . . . . . . Robot Schematics Acquired 6 | . . . . . . . 6 Robots Built . | . . . . . . . . Authchips . | . . . . . . . . Time . | . . . . . . . . Total Robot Build Rating . | . . . . . . . . Part Schematics Acquired 11 | . . . . . . . 11 Parts Built . | . . . . . . . . Authchips . | . . . . . . . . Time . | . . . . . . . . Total Part Build Rating . | . . . . . . . . Parts Repaired . | . . . . . . . . Time . | . . . . . . . . Parts Recycled . | . . . . . . . . Recycled Matter . | . . . . . . . . Retrieved Matter . | . . . . . . . . Retrieved Components . | . . . . . . . . Parts Scanalyzed . | . . . . . . . . Part Schematics Acquired . | . . . . . . . . Parts Damaged . | . . . . . . . . Bothacking | -11 -10 -9 -9 -8 -7 -7 -7 ------------ Run | Yrd Mat Mat Min Mat Fac Low Dat Used RIF Installer . | . . . . . . . . Robots Hacked . | . . . . . . . . Non-combat . | . . . . . . . . Combat . | . . . . . . . . Robot Hacks Applied . | . . . . . . . . Relay Couplers Released . | . . . . . . . . Fabnet Peak Effective % . | . . . . . . . . Robots Rewired . | . . . . . . . . Allies Hacked . | . . . . . . . . Hacks Repelled . | . . . . . . . . Allies | -11 -10 -9 -9 -8 -7 -7 -7 -------- Run | Yrd Mat Mat Min Mat Fac Low Dat Total Allies . | . . . . . . . . Largest Group . | . . . . . . . . Highest-Rated Group . | . . . . . . . . Highest-Rated Ally . | . . . . . . . . Total Orders 4 | . . . . 4 . . . EXPLORE 3 | . . . . 3 . . . RETURN 1 | . . . . 1 . . . Ally Attacks 12 | . . . . 12 . . . Total Damage . | . . . . . . . . Kills . | . . . . . . . . Allies Corrupted 2 | . . . . 2 . . . Allies Melted . | . . . . . . . . Intel | -11 -10 -9 -9 -8 -7 -7 -7 ------- Run | Yrd Mat Mat Min Mat Fac Low Dat Robot Analysis Total . | . . . . . . . . Derelict Logs Recovered 3 | . . . 2 . . 1 . Drone Launches 22 | . . . . 22 . . . Drone Recoveries 6 | . . . . 6 . . . Exploration | -11 -10 -9 -9 -8 -7 -7 -7 ------------- Run | Yrd Mat Mat Min Mat Fac Low Dat Turns Passed 3189 | 144 382 527 782 402 128 672 152 Spaces Moved 1802 | 73 218 270 572 195 54 354 66 Core 23 | 7 . . . . . . 16 Treads . | . . . . . . . . Legs 1779 | 66 218 270 572 195 54 354 50 Wheels . | . . . . . . . . Hover . | . . . . . . . . Flight . | . . . . . . . . Fastest Speed 50 | 50 120 120 120 120 120 190 100 Average Speed 135 | 113 120 120 120 120 156 190 151 Slowest Speed 190 | 120 120 120 120 120 190 190 190 Overloaded Moves . | . . . . . . . . Propulsion Burnouts . | . . . . . . . . Robots Hopped . | . . . . . . . . Cave-ins Triggered . | . . . . . . . . Exploration Rate (%) 45 | 4 35 29 90 64 2 54 87 Regions Visited 7 Branch Regions 3 Pre-discovered Areas 1 | . . . . . . . 1 Known Exits Taken 1 | . . . . . 1 . . Unknown Exits Taken 6 | 1 1 1 1 1 . 1 . Scrap Searched 3 | . . . 2 . . 1 . Spaces Dug . | . . . . . . . . Terrain Destroyed 75 | . 2 . 9 9 1 . 54 Melee . | . . . . . . . . Projectile 10 | . . . . 9 1 . . AOE 65 | . 2 . 9 . . . 54 Terrain Rammed . | . . . . . . . . Walls Destroyed . | . . . . . . . . Machines Disabled . | . . . . . . . . Actions | -11 -10 -9 -9 -8 -7 -7 -7 --------- Run | Yrd Mat Mat Min Mat Fac Low Dat Total 2303 | 106 296 424 641 303 79 354 100 Wait 249 | . 33 95 32 67 8 . 14 Move 1795 | 72 217 269 571 194 53 353 66 Hop . | . . . . . . . . Pick Up 53 | 11 11 12 9 4 4 1 1 Fast Attach . | . . . . . . . . Attach 24 | 6 3 3 2 3 2 . 5 Detach . | . . . . . . . . Swap 19 | 1 1 9 6 2 . . . Drop 31 | . 8 11 7 3 2 . . Fire 126 | 16 23 25 14 30 10 . 8 Melee 6 | . . . . . . . 6 Ram . | . . . . . . . . Kick . | . . . . . . . . Crush . | . . . . . . . . Escape Stasis . | . . . . . . . . Rewire . | . . . . . . . . Trap . | . . . . . . . . Miscellaneous . | . . . . . . . . Route ------- -11/Scrapyard -10/Materials -9/Materials -9/Mines -8/Materials -7/Factory (discovered 4 exits: [*Fac] / *Low x2 / Gar) -7/Lower Caves -7/Data Miner (discovered 1 exit: [*Pro]) History --------- Turn | Location | Event 7 | -11/Scrapyard | Discovered new exit (range 15) 145 | -11/Scrapyard | Entered Materials 304 | -10/Materials | Build established: Mutant 402 | -10/Materials | Discovered new exit (range 4) 527 | -10/Materials | Entered another Materials area 527 | -9/Materials | Evolved 2 slots: Propulsion x1, Utility x1 624 | -9/Materials | Discovered new exit (range 12) 1054 | -9/Materials | Entered Mines 1128 | -9/Mines | YI-UF0 nonchalantly dropped a Grenade Launcher on the ground 1169 | -9/Mines | Discovered new exit (range 6) 1419 | -9/Mines | A weapon hastily lodged in a ceiling crevice suddenly fell to the ground 1469 | -9/Mines | Found a damaged Exp. Sensor Array with a note attached 1471 | -9/Mines | Found Prototype Device 1486 | -9/Mines | Learned Materials terminal intel 1640 | -9/Mines | Build established: Scavenger-Mutant 1642 | -9/Mines | Found the Drone Emporium 1650 | -9/Mines | Found Prototype Device 1836 | -9/Mines | Entered Materials 1836 | -8/Materials | Evolved 2 slots: Utility x2 1836 | -8/Materials | Identified Bomb Drone Bay 1837 | -8/Materials | Loaded intel: 9 terminal locations 1972 | -8/Materials | Discovered new exit (range 31) 2238 | -8/Materials | Entered Factory 2238 | -7/Factory | Evolved 2 slots: Utility x2 2239 | -7/Factory | Identified exit to Lower Caves 2249 | -7/Factory | Identified exit to Garrison 2285 | -7/Factory | Discovered new exit (range 18) 2287 | -7/Factory | Discovered exit to Lower Caves (range 7) 2321 | -7/Factory | Identified Exp. Sensor Array 2366 | -7/Factory | Entered Lower Caves 2754 | -7/Lower Caves | Learned Factory trap positions 2964 | -7/Lower Caves | Encountered a Warlord checkpoint 3035 | -7/Lower Caves | A Derelict revealed a hidden shortcut to meet someone special 3038 | -7/Lower Caves | Entered Data Miner 3038 | -7/Data Miner | Discovered new exit (range 6) 3071 | -7/Data Miner | Met Data Miner 3094 | -7/Data Miner | Data Conduit disabled 3116 | -7/Data Miner | Learned location of Section 7 (-2) 3116 | -7/Data Miner | Acquired the access code to Warlord's prototype stash 3163 | -7/Data Miner | Core integrity fell below 50% 3173 | -7/Data Miner | Core integrity fell below 20% 3190 | -7/Data Miner | Destroyed by Enhanced Grunt with Neutron Cannon Last Messages --------------- 03145_ Imp. Aluminum Leg destroyed. 03145_ Imp. Ion Engine destroyed. 03146_ The unstable cave ceiling collapses. 03147_ Destroyed Adv. Heat Sink. 03148_ Aluminum Leg destroyed. 03148_ Hrd. Heavy Armor Plating destroyed. 03149_ The unstable cave ceiling collapses. 03149_ Enhanced Grunt destroyed. 03149_ Destroyed Adv. Heat Sink. 03149_ Enhanced Grunt destroyed. 03152_ The unstable cave ceiling collapses. 03152_ Aluminum Leg destroyed. 03152_ Destroyed Aluminum Leg. 03152_ Hvy. Missile Launcher destroyed. 03157_ The unstable cave ceiling collapses. 03165_ Adv. Heat Sink destroyed. 03167_ Enhanced Grunt Prototype Energy Cannon severed. 03170_ Acquired 12 matter. 03172_ Acquired Prototype Energy Cannon. Map ----- +----------------------------------------------------+ | ?????#################????????????########? | | ?????########################????##### ##? | | ?????"""""""""""""""###### # # # ### ##? | | ??????""""""" """"""""# # # #### < #### | | ?????"""""""" ### | | ?????""""" | | ?????""""" | | ????""""" | | ????""""" | | ????"""""" ? """"""""""""""""### | | ?????"""""" """"################# | | ??????""""" """""##################? | | ?????"""""""" "########??????????????? | | ?????#######""" "######????????????????? | | ?????#######"##; "##????????????????????? | | ??????????##"### "##????????????????????? | | ??????????##"## ##????????????????????? | | ??????????##"## "##????????????????????? | | ???????????#"# "##????????????????????? | | ???????""?##"##; "###???????????????????? | | ???????"""## ### "###???????????????????? | | ??????""""# # ; "##???????????????????? | | ??????""" ""##???????????????????? | | ??????###" " ###?????????????????? | | ???????# ####????????????????? | | ???????## @ """"#????????????????? | | ????????## g #"##????????????????? | | ?????????# ""##????????????????? | | ?????????###" "##????????????????? | | ???????????#" # #"##????????????????? | | ???????????#" ;"#?????????????????? | | ???????????#"#### # #?????????????????? | | ???????????#"""""""""" ";#????????????????? | | ???????????######""#######????????????????? | | ????????????????#""#??????????????????????? | | ????????????????#""#??????????????????????? | | ??????????????????"???????????????????????? | | ??????????????????????????????????????????? | | ??????????????????????????????????????????? | | ??????????????????????????????????????????? | | ??????????????????????????????????????????? | | ??????????????????????????????????????????? | | ??????????????????????????????????????????? | | ??????????????????????????????????????????? | | ??????????????????????????????????????????? | | ??????????????????????????????????????????? | | | | | | | | | +----------------------------------------------------+ Best States ------------- Heat Dissipation 53 Energy Generation 14 Energy Capacity 265 Matter Stores 300 Matter Capacity 300 Sight Range 18 Robot Scan Range 20 Terrain Scan Range 16 Terrain Scan Density 10 Base Temperature (-) 100 Armor Coverage 600 Resistance: KI 20 Resistance: TH 20 Resistance: EX 20 Resistance: EM 20 Resistance: I 20 Resistance: S 20 Resistance: P 20 Core Shielding 20 Evasion (%) 55 Targeting Accuracy 5 Offensive Hacking 10 Defensive Hacking 10 Item Schematics ----------------- Combat Drone Bay | -7/Data Miner | Free Lgt. Regenerative Plating | -7/Data Miner | Free Cld. Cesium-ion Thruster | -7/Data Miner | Free Gravity Neutralizer | -7/Data Miner | Free Antimatter Cannon | -7/Data Miner | Free Hvy. Treads | -7/Data Miner | Free Imp. Coolant Injector | -7/Data Miner | Free Hvy. Phase Cannon | -7/Data Miner | Free Hyp. Gauss Cannon | -7/Data Miner | Free Imp. Remote Shield | -7/Data Miner | Free Field Propulsion Array | -7/Data Miner | Free Robot Schematics ------------------ R-10 Processor | -7/Data Miner | Free E-15 Imp | -7/Data Miner | Free A-15 Conveyor | -7/Data Miner | Free S-27 Virus | -7/Data Miner | Free B-60 Warrior | -7/Data Miner | Free L-41 Fighter | -7/Data Miner | Free Fabricated ------------ Nothing Alien Tech Used ----------------- None Achievements -------------- None Challenges ------------ None Game ------ Seed CargoAlloyCleaver Manual? 0 Play Time 00:45:57 Cumulative 13.9 hours Start 2024.03.15 @ 13:54:04 End 2024.03.15 @ 14:43:46 Sessions 1 Manual Loads 0 Difficulty Adventurer Special Mode None Game No. 16 Rogue 7 Adventurer 7 Explorer 2 Win Type - Total 0 Types 0/0/0/0/0/0/0/0/0 Lore% 7 Gallery% 19 Achievement% 16 Wizard Run 0 Options --------- Layout 1 ASCII 0 Keyboard 0 Movement Mouse Keybinds 0 Fullscreen 1 Font 24/Smallcaps Map View 50x35 Zoom Use 0% Tactical HUD 1 Map Filters NONE Filters NONE Steam 1 RUN: eb2a7605-f0e8-44b5-b21c-9d01c321496f